Workbook

Sheet Data
A1: 1040 | H1: Most Recent %
A2: Year | B2: Due | C2: Extension | F2: ADD NEW: | H2: =INDIRECT(ADDRESS(MIN(ROW(InterestRateTbl[])),COLUMN(InterestRateTbl[Daily Rate]))) -> 0.0002465753425 | J2: Return Due Dates
A3: 2000 | B3: =IF(WEEKDAY(DATE(A3,4,15),1)=1,DATE(A3+1,4,16),IF(WEEKDAY(DATE(A3,4,15),1)=7,DATE(A3+1,4,17),DATE(A3+1,4,15))) -> 2001-04-17 | C3: =IF(WEEKDAY(DATE(A3,10,15),1)=1,DATE(A3+1,10,16),IF(WEEKDAY(DATE(A3,10,15),1)=7,DATE(A3+1,10,17),DATE(A3+1,10,15))) -> 2001-10-16 | F3: INTEREST RATE TABLE | J3: Type | K3: M | L3: D | M3: Y
A4: =A3+1 -> 2001 | B4: =IF(WEEKDAY(DATE(A4,4,15),1)=1,DATE(A4+1,4,16),IF(WEEKDAY(DATE(A4,4,15),1)=7,DATE(A4+1,4,17),DATE(A4+1,4,15))) -> 2002-04-16 | C4: =IF(WEEKDAY(DATE(A4,10,15),1)=1,DATE(A4+1,10,16),IF(WEEKDAY(DATE(A4,10,15),1)=7,DATE(A4+1,10,17),DATE(A4+1,10,15))) -> 2002-10-15 | F4: PERIOD | G4: APR | H4: Daily Rate | J4: 940 | K4: 1 | L4: 31 | M4: 1
A5: =A4+1 -> 2002 | B5: 2003-04-15 | C5: 2003-10-15 | F5: 2024 12 | G5: 0.09 | H5: =InterestRateTbl[[#This Row],[APR]]/365 -> 0.0002465753425 | J5: 941Q1 | K5: 4 | L5: 30 | M5: 0
A6: 2003 | B6: 2004-04-15 | C6: 2004-10-15 | F6: 2024 09 | G6: 0.08 | H6: =InterestRateTbl[[#This Row],[APR]]/365 -> 0.0002191780822 | J6: 941Q2 | K6: 7 | L6: 31 | M6: 0
A7: 2004 | B7: 2005-04-15 | C7: 2005-10-15 | F7: 2024 06 | G7: 0.08 | H7: =InterestRateTbl[[#This Row],[APR]]/365 -> 0.0002191780822 | J7: 941Q3 | K7: 10 | L7: 31 | M7: 0
A8: 2005 | B8: 2006-04-15 | C8: 2006-10-17 | F8: 2024 03 | G8: 0.08 | H8: =InterestRateTbl[[#This Row],[APR]]/365 -> 0.0002191780822 | J8: 941Q4 | K8: 1 | L8: 31 | M8: 1
A9: 2006 | B9: 2007-04-17 | C9: 2007-10-16 | F9: 2023 12 | G9: 0.08 | H9: =InterestRateTbl[[#This Row],[APR]]/365 -> 0.0002191780822 | J9: 1040 | K9: 4 | L9: 15 | M9: 1
A10: 2007 | B10: 2008-04-16 | C10: 2008-10-15 | F10: 2023 09 | G10: 0.07 | H10: =InterestRateTbl[[#This Row],[APR]]/365 -> 0.0001917808219 | J10: 1065
A11: 2008 | B11: 2009-04-15 | C11: 2009-10-15 | F11: 2023 06 | G11: 0.07 | H11: =InterestRateTbl[[#This Row],[APR]]/365 -> 0.0001917808219 | J11: 1120
A12: 2009 | B12: 2010-04-15 | C12: 2010-10-15 | F12: 2023 03 | G12: 0.07 | H12: =InterestRateTbl[[#This Row],[APR]]/365 -> 0.0001917808219
A13: 2010 | B13: 2011-04-15 | C13: 2011-10-15 | F13: 2022 12 | G13: 0.06 | H13: =InterestRateTbl[[#This Row],[APR]]/365 -> 0.0001643835616
A14: 2011 | B14: 2012-04-15 | C14: 2012-10-17 | F14: 2022 09 | G14: 0.05 | H14: =InterestRateTbl[[#This Row],[APR]]/365 -> 0.0001369863014
A15: 2012 | B15: 2013-04-16 | C15: 2013-10-15 | F15: 2022 06 | G15: 0.04 | H15: =InterestRateTbl[[#This Row],[APR]]/365 -> 0.0001095890411
A16: 2013 | B16: 2014-04-15 | C16: 2014-10-15 | F16: 2022 03 | G16: 0.03 | H16: =InterestRateTbl[[#This Row],[APR]]/365 -> 8.219178082e-05
A17: 2014 | B17: 2015-04-15 | C17: 2015-10-15 | F17: 2021 12 | G17: 0.03 | H17: =InterestRateTbl[[#This Row],[APR]]/365 -> 8.219178082e-05
A18: 2015 | B18: 2016-04-15 | C18: 2016-10-15 | F18: 2021 09 | G18: 0.03 | H18: =InterestRateTbl[[#This Row],[APR]]/365 -> 8.219178082e-05
A19: 2016 | B19: 2017-04-15 | C19: 2017-10-17 | F19: 2021 06 | G19: 0.03 | H19: =InterestRateTbl[[#This Row],[APR]]/365 -> 8.219178082e-05
A20: 2017 | B20: 2018-04-17 | C20: 2018-10-16 | F20: 2021 03 | G20: 0.03 | H20: =InterestRateTbl[[#This Row],[APR]]/365 -> 8.219178082e-05
A21: 2018 | B21: 2019-04-16 | C21: 2019-10-15 | F21: 2020 12 | G21: 0.03 | H21: =InterestRateTbl[[#This Row],[APR]]/365 -> 8.219178082e-05
A22: 2019 | B22: 2020-04-15 | C22: 2020-10-15 | F22: 2020 09 | G22: 0.03 | H22: =InterestRateTbl[[#This Row],[APR]]/365 -> 8.219178082e-05
A23: 2020 | B23: 2021-04-15 | C23: 2021-10-15 | F23: 2020 06 | G23: 0.05 | H23: =InterestRateTbl[[#This Row],[APR]]/365 -> 0.0001369863014
A24: 2021 | B24: 2022-04-15 | C24: 2022-10-15 | F24: 2020 03 | G24: 0.05 | H24: =InterestRateTbl[[#This Row],[APR]]/365 -> 0.0001369863014
A25: 2022 | B25: 2023-04-15 | C25: 2023-10-17 | F25: 2019 12 | G25: 0.05 | H25: =InterestRateTbl[[#This Row],[APR]]/365 -> 0.0001369863014
A26: 2023 | B26: 2024-04-17 | C26: 2024-10-16 | F26: 2019 09 | G26: 0.05 | H26: =InterestRateTbl[[#This Row],[APR]]/365 -> 0.0001369863014
A27: 2024 | B27: 2025-04-15 | C27: 2025-10-15 | F27: 2019 06 | G27: 0.06 | H27: =InterestRateTbl[[#This Row],[APR]]/365 -> 0.0001643835616
A28: 2025 | B28: 2026-04-15 | C28: 2026-10-15 | F28: 2019 03 | G28: 0.06 | H28: =InterestRateTbl[[#This Row],[APR]]/365 -> 0.0001643835616
A29: 2026 | B29: 2027-04-15 | C29: 2027-10-15 | F29: 2018 12 | G29: 0.05 | H29: =InterestRateTbl[[#This Row],[APR]]/365 -> 0.0001369863014
A30: 2027 | B30: 2028-04-15 | C30: 2028-10-15 | F30: 2018 09 | G30: 0.05 | H30: =InterestRateTbl[[#This Row],[APR]]/365 -> 0.0001369863014
A31: 2028 | B31: 2029-04-17 | C31: 2029-10-16 | F31: 2018 06 | G31: 0.05 | H31: =InterestRateTbl[[#This Row],[APR]]/365 -> 0.0001369863014
A32: 2029 | B32: 2030-04-16 | C32: 2030-10-15 | F32: 2018 03 | G32: 0.04 | H32: =InterestRateTbl[[#This Row],[APR]]/365 -> 0.0001095890411
A33: 2030 | B33: 2031-04-15 | C33: 2031-10-15 | F33: 2017 12 | G33: 0.04 | H33: =InterestRateTbl[[#This Row],[APR]]/365 -> 0.0001095890411
A34: 2031 | B34: 2032-04-15 | C34: 2032-10-15 | F34: 2017 09 | G34: 0.04 | H34: =InterestRateTbl[[#This Row],[APR]]/365 -> 0.0001095890411
A35: 2032 | B35: 2033-04-15 | C35: 2033-10-15 | F35: 2017 06 | G35: 0.04 | H35: =InterestRateTbl[[#This Row],[APR]]/365 -> 0.0001095890411
A36: 2033 | B36: 2034-04-15 | C36: 2034-10-17 | F36: 2017 03 | G36: 0.04 | H36: =InterestRateTbl[[#This Row],[APR]]/365 -> 0.0001095890411
A37: 2034 | B37: 2035-04-17 | C37: 2035-10-16 | F37: 2016 12 | G37: 0.04 | H37: =InterestRateTbl[[#This Row],[APR]]/365 -> 0.0001095890411
A38: 2035 | B38: 2036-04-16 | C38: 2036-10-15 | F38: 2016 09 | G38: 0.04 | H38: =InterestRateTbl[[#This Row],[APR]]/365 -> 0.0001095890411
A39: 2036 | B39: 2037-04-15 | C39: 2037-10-15 | F39: 2016 06 | G39: 0.04 | H39: =InterestRateTbl[[#This Row],[APR]]/365 -> 0.0001095890411
A40: 2037 | B40: 2038-04-15 | C40: 2038-10-15 | F40: 2016 03 | G40: 0.03 | H40: =InterestRateTbl[[#This Row],[APR]]/365 -> 8.219178082e-05
A41: 2038 | B41: 2039-04-15 | C41: 2039-10-15 | F41: 2015 12 | G41: 0.03 | H41: =InterestRateTbl[[#This Row],[APR]]/365 -> 8.219178082e-05
A42: 2039 | B42: 2040-04-15 | C42: 2040-10-17 | F42: 2015 09 | G42: 0.03 | H42: =InterestRateTbl[[#This Row],[APR]]/365 -> 8.219178082e-05
A43: 2040 | B43: 2041-04-16 | C43: 2041-10-15 | F43: 2015 06 | G43: 0.03 | H43: =InterestRateTbl[[#This Row],[APR]]/365 -> 8.219178082e-05
A44: 2041 | B44: 2042-04-15 | C44: 2042-10-15 | F44: 2015 03 | G44: 0.03 | H44: =InterestRateTbl[[#This Row],[APR]]/365 -> 8.219178082e-05
A45: 2042 | B45: 2043-04-15 | C45: 2043-10-15 | F45: 2014 12 | G45: 0.03 | H45: =InterestRateTbl[[#This Row],[APR]]/365 -> 8.219178082e-05
A46: 2043 | B46: 2044-04-15 | C46: 2044-10-15 | F46: 2014 09 | G46: 0.03 | H46: =InterestRateTbl[[#This Row],[APR]]/365 -> 8.219178082e-05
A47: 2044 | B47: 2045-04-15 | C47: 2045-10-17 | F47: 2014 06 | G47: 0.03 | H47: =InterestRateTbl[[#This Row],[APR]]/365 -> 8.219178082e-05
A48: 2045 | B48: 2046-04-17 | C48: 2046-10-16 | F48: 2014 03 | G48: 0.03 | H48: =InterestRateTbl[[#This Row],[APR]]/365 -> 8.219178082e-05
A49: 2046 | B49: 2047-04-16 | C49: 2047-10-15 | F49: 2013 12 | G49: 0.03 | H49: =InterestRateTbl[[#This Row],[APR]]/365 -> 8.219178082e-05
A50: 2047 | B50: 2048-04-15 | C50: 2048-10-15 | F50: 2013 09 | G50: 0.03 | H50: =InterestRateTbl[[#This Row],[APR]]/365 -> 8.219178082e-05
A51: 2048 | B51: 2049-04-15 | C51: 2049-10-15 | F51: 2013 06 | G51: 0.03 | H51: =InterestRateTbl[[#This Row],[APR]]/365 -> 8.219178082e-05
A52: 2049 | B52: 2050-04-15 | C52: 2050-10-15 | F52: 2013 03 | G52: 0.03 | H52: =InterestRateTbl[[#This Row],[APR]]/365 -> 8.219178082e-05
A53: 2050 | B53: 2051-04-15 | C53: 2051-10-17 | F53: 2012 12 | G53: 0.03 | H53: =InterestRateTbl[[#This Row],[APR]]/365 -> 8.219178082e-05
F54: 2012 09 | G54: 0.03 | H54: =InterestRateTbl[[#This Row],[APR]]/365 -> 8.219178082e-05
F55: 2012 06 | G55: 0.03 | H55: =InterestRateTbl[[#This Row],[APR]]/365 -> 8.219178082e-05
F56: 2012 03 | G56: 0.03 | H56: =InterestRateTbl[[#This Row],[APR]]/365 -> 8.219178082e-05
F57: 2011 12 | G57: 0.03 | H57: =InterestRateTbl[[#This Row],[APR]]/365 -> 8.219178082e-05
F58: 2011 09 | G58: 0.04 | H58: =InterestRateTbl[[#This Row],[APR]]/365 -> 0.0001095890411
F59: 2011 06 | G59: 0.04 | H59: =InterestRateTbl[[#This Row],[APR]]/365 -> 0.0001095890411
F60: 2011 03 | G60: 0.03 | H60: =InterestRateTbl[[#This Row],[APR]]/365 -> 8.219178082e-05
F61: 2010 12 | G61: 0.04 | H61: =InterestRateTbl[[#This Row],[APR]]/365 -> 0.0001095890411
F62: 2010 09 | G62: 0.04 | H62: =InterestRateTbl[[#This Row],[APR]]/365 -> 0.0001095890411
F63: 2010 06 | G63: 0.04 | H63: =InterestRateTbl[[#This Row],[APR]]/365 -> 0.0001095890411
F64: 2010 03 | G64: 0.04 | H64: =InterestRateTbl[[#This Row],[APR]]/365 -> 0.0001095890411
F65: 2009 12 | G65: 0.04 | H65: =InterestRateTbl[[#This Row],[APR]]/365 -> 0.0001095890411
F66: 2009 09 | G66: 0.04 | H66: =InterestRateTbl[[#This Row],[APR]]/365 -> 0.0001095890411
F67: 2009 06 | G67: 0.04 | H67: =InterestRateTbl[[#This Row],[APR]]/365 -> 0.0001095890411
F68: 2009 03 | G68: 0.05 | H68: =InterestRateTbl[[#This Row],[APR]]/365 -> 0.0001369863014
F69: 2008 12 | G69: 0.06 | H69: =InterestRateTbl[[#This Row],[APR]]/365 -> 0.0001643835616
F70: 2008 09 | G70: 0.05 | H70: =InterestRateTbl[[#This Row],[APR]]/365 -> 0.0001369863014
F71: 2008 06 | G71: 0.06 | H71: =InterestRateTbl[[#This Row],[APR]]/365 -> 0.0001643835616
F72: 2008 03 | G72: 0.07 | H72: =InterestRateTbl[[#This Row],[APR]]/365 -> 0.0001917808219
F73: 2007 12 | G73: 0.08 | H73: =InterestRateTbl[[#This Row],[APR]]/365 -> 0.0002191780822
F74: 2007 09 | G74: 0.08 | H74: =InterestRateTbl[[#This Row],[APR]]/365 -> 0.0002191780822
F75: 2007 06 | G75: 0.08 | H75: =InterestRateTbl[[#This Row],[APR]]/365 -> 0.0002191780822
F76: 2007 03 | G76: 0.08 | H76: =InterestRateTbl[[#This Row],[APR]]/365 -> 0.0002191780822
F77: 2006 12 | G77: 0.08 | H77: =InterestRateTbl[[#This Row],[APR]]/365 -> 0.0002191780822
F78: 2006 09 | G78: 0.08 | H78: =InterestRateTbl[[#This Row],[APR]]/365 -> 0.0002191780822
F79: 2006 06 | G79: 0.07 | H79: =InterestRateTbl[[#This Row],[APR]]/365 -> 0.0001917808219
F80: 2006 03 | G80: 0.07 | H80: =InterestRateTbl[[#This Row],[APR]]/365 -> 0.0001917808219
F81: 2005 12 | G81: 0.07 | H81: =InterestRateTbl[[#This Row],[APR]]/365 -> 0.0001917808219
F82: 2005 09 | G82: 0.06 | H82: =InterestRateTbl[[#This Row],[APR]]/365 -> 0.0001643835616
F83: 2005 06 | G83: 0.06 | H83: =InterestRateTbl[[#This Row],[APR]]/365 -> 0.0001643835616
F84: 2005 03 | G84: 0.05 | H84: =InterestRateTbl[[#This Row],[APR]]/365 -> 0.0001369863014
F85: 2004 12 | G85: 0.05 | H85: =InterestRateTbl[[#This Row],[APR]]/365 -> 0.0001369863014
F86: 2004 09 | G86: 0.04 | H86: =InterestRateTbl[[#This Row],[APR]]/365 -> 0.0001095890411
F87: 2004 06 | G87: 0.05 | H87: =InterestRateTbl[[#This Row],[APR]]/365 -> 0.0001369863014
F88: 2004 03 | G88: 0.04 | H88: =InterestRateTbl[[#This Row],[APR]]/365 -> 0.0001095890411
F89: 2003 12 | G89: 0.04 | H89: =InterestRateTbl[[#This Row],[APR]]/365 -> 0.0001095890411
F90: 2003 09 | G90: 0.05 | H90: =InterestRateTbl[[#This Row],[APR]]/365 -> 0.0001369863014
F91: 2003 06 | G91: 0.05 | H91: =InterestRateTbl[[#This Row],[APR]]/365 -> 0.0001369863014
F92: 2003 03 | G92: 0.05 | H92: =InterestRateTbl[[#This Row],[APR]]/365 -> 0.0001369863014
F93: 2002 12 | G93: 0.06 | H93: =InterestRateTbl[[#This Row],[APR]]/365 -> 0.0001643835616
F94: 2002 09 | G94: 0.06 | H94: =InterestRateTbl[[#This Row],[APR]]/365 -> 0.0001643835616
F95: 2002 06 | G95: 0.06 | H95: =InterestRateTbl[[#This Row],[APR]]/365 -> 0.0001643835616
F96: 2002 03 | G96: 0.06 | H96: =InterestRateTbl[[#This Row],[APR]]/365 -> 0.0001643835616
F97: 2001 12 | G97: 0.07 | H97: =InterestRateTbl[[#This Row],[APR]]/365 -> 0.0001917808219
F98: 2001 09 | G98: 0.07 | H98: =InterestRateTbl[[#This Row],[APR]]/365 -> 0.0001917808219
F99: 2001 06 | G99: 0.08 | H99: =InterestRateTbl[[#This Row],[APR]]/365 -> 0.0002191780822
F100: 2001 03 | G100: 0.09 | H100: =InterestRateTbl[[#This Row],[APR]]/365 -> 0.0002465753425

Sheet Overall
B1: Interest Rate
B2: Annual | C2: 0.08
B3: Daily | C3: =C2/365 -> 0.0002191780822
B4: Beginning Bal: | C4: 31000 | D4: Payment Amt:
B5: Payment Start Dt: | C5: 2024-09-28 | D5: 500
B6: Payment Change 1:
B7: Payment Change 2:
B8: Payment Day: | C8: =DAY(C5) -> 28
B9: Payoff Date: | C9: =_xlfn.XLOOKUP(1,--(Table248[End Bal]<0),Table248[Date]) ->  | D9: ="Months to payoff: "&DATEDIF(C5,C9,"M") -> 
B10: Total Paid at payoff: | C10: =_xlfn.XLOOKUP(C9,Table248[Date],Table248[Paid To Date]) ->  | E10: Show this date:
B11: Total Paid To Date: | C11: =_xlfn.XLOOKUP(DATE(YEAR(TODAY()),MONTH(TODAY()),DAY(TODAY())),Table248[Date],Table248[Paid To Date]) -> 
B13: Date | C13: Beg Bal | D13: Interest | E13: Credits | F13: Penalties | G13: End Bal | H13: Current Pmt | I13: Paid To Date

Sheet Calculator
A1: Payment amount | C1: 1500 | G1: PD | H1: Type | I1: Year | J1: Qtr. | K1: LkUp | L1: CSED | M1: Ext. Filed (Y/N) | N1: Return Due Date | O1: Return Filed Date | P1: File Date past due | Q1: Tax Amount | R1: Tax Due Date | S1: Tax paid by due date | T1: Balance Due | U1: Payoff Date | V1: Pay Date past due | W1: # Days
A2: Payment start date | C2: 2024-09-28 | G2: 1 | H2: 1040 | I2: 2014 | K2: =CalculationTbl[[#This Row],[Type]]&CalculationTbl[[#This Row],[Qtr.]] -> 1040 | L2: 2025-03-30 | M2: TRUE | N2: 2015-04-15 | O2: 2015-11-04 | P2: =IF(AND(CalculationTbl[[#This Row],[Return Filed Date]]<>"",CalculationTbl[[#This Row],[Return Due Date]]<>""),MONTH(CalculationTbl[[#This Row],[Return Filed Date]])-MONTH(CalculationTbl[[#This Row],[Return Due Date]]),"") -> 7 | Q2: 24000 | R2: 2015-04-15 | S2: 11548 | T2: =CalculationTbl[[#This Row],[Tax Amount]]-CalculationTbl[[#This Row],[Tax paid by due date]] -> 12452 | U2: 2020-01-25 | V2: =IF(AND(CalculationTbl[[#This Row],[Balance Due]]>0,CalculationTbl[[#This Row],[Tax Due Date]]<>"",CalculationTbl[[#This Row],[Payoff Date]]<>""),(CalculationTbl[[#This Row],[Payoff Date]]-CalculationTbl[[#This Row],[Tax Due Date]])/30,"") -> 58.2 | W2: =(CalculationTbl[[#This Row],[CSED]]-CalculationTbl[[#This Row],[Tax Due Date]]) -> 3637
A3: Number of Months | C3: 120 | G3: 2 | H3: 940 | I3: 2015 | K3: =CalculationTbl[[#This Row],[Type]]&CalculationTbl[[#This Row],[Qtr.]] -> 940 | L3: 2026-05-09 | M3: FALSE | N3: 2016-01-31 | P3: =IF(AND(CalculationTbl[[#This Row],[Return Filed Date]]<>"",CalculationTbl[[#This Row],[Return Due Date]]<>""),MONTH(CalculationTbl[[#This Row],[Return Filed Date]])-MONTH(CalculationTbl[[#This Row],[Return Due Date]]),"") ->  | R3: 2016-01-31 | T3: =CalculationTbl[[#This Row],[Tax Amount]]-CalculationTbl[[#This Row],[Tax paid by due date]] -> 0 | V3: =IF(AND(CalculationTbl[[#This Row],[Balance Due]]>0,CalculationTbl[[#This Row],[Tax Due Date]]<>"",CalculationTbl[[#This Row],[Payoff Date]]<>""),(CalculationTbl[[#This Row],[Payoff Date]]-CalculationTbl[[#This Row],[Tax Due Date]])/30,"") ->  | W3: =(CalculationTbl[[#This Row],[CSED]]-CalculationTbl[[#This Row],[Tax Due Date]]) -> 3751
G4: 3 | H4: 941 | I4: 2015 | K4: =CalculationTbl[[#This Row],[Type]]&CalculationTbl[[#This Row],[Qtr.]] -> 941 | L4: 2026-05-09 | M4: FALSE | N4: 2016-01-31 | P4: =IF(AND(CalculationTbl[[#This Row],[Return Filed Date]]<>"",CalculationTbl[[#This Row],[Return Due Date]]<>""),MONTH(CalculationTbl[[#This Row],[Return Filed Date]])-MONTH(CalculationTbl[[#This Row],[Return Due Date]]),"") ->  | R4: 2016-01-31 | T4: =CalculationTbl[[#This Row],[Tax Amount]]-CalculationTbl[[#This Row],[Tax paid by due date]] -> 0 | V4: =IF(AND(CalculationTbl[[#This Row],[Balance Due]]>0,CalculationTbl[[#This Row],[Tax Due Date]]<>"",CalculationTbl[[#This Row],[Payoff Date]]<>""),(CalculationTbl[[#This Row],[Payoff Date]]-CalculationTbl[[#This Row],[Tax Due Date]])/30,"") ->  | W4: =(CalculationTbl[[#This Row],[CSED]]-CalculationTbl[[#This Row],[Tax Due Date]]) -> 3751
G5: 4 | H5: 1040 | I5: 2016 | K5: =CalculationTbl[[#This Row],[Type]]&CalculationTbl[[#This Row],[Qtr.]] -> 1040 | L5: 2028-04-28 | M5: FALSE | N5: 2017-10-15 | P5: =IF(AND(CalculationTbl[[#This Row],[Return Filed Date]]<>"",CalculationTbl[[#This Row],[Return Due Date]]<>""),MONTH(CalculationTbl[[#This Row],[Return Filed Date]])-MONTH(CalculationTbl[[#This Row],[Return Due Date]]),"") ->  | R5: 2017-04-15 | T5: =CalculationTbl[[#This Row],[Tax Amount]]-CalculationTbl[[#This Row],[Tax paid by due date]] -> 0 | V5: =IF(AND(CalculationTbl[[#This Row],[Balance Due]]>0,CalculationTbl[[#This Row],[Tax Due Date]]<>"",CalculationTbl[[#This Row],[Payoff Date]]<>""),(CalculationTbl[[#This Row],[Payoff Date]]-CalculationTbl[[#This Row],[Tax Due Date]])/30,"") ->  | W5: =(CalculationTbl[[#This Row],[CSED]]-CalculationTbl[[#This Row],[Tax Due Date]]) -> 4031
G6: 5 | H6: 940 | I6: 2016 | K6: =CalculationTbl[[#This Row],[Type]]&CalculationTbl[[#This Row],[Qtr.]] -> 940 | L6: 2027-05-15 | M6: TRUE | N6: 2017-01-31 | P6: =IF(AND(CalculationTbl[[#This Row],[Return Filed Date]]<>"",CalculationTbl[[#This Row],[Return Due Date]]<>""),MONTH(CalculationTbl[[#This Row],[Return Filed Date]])-MONTH(CalculationTbl[[#This Row],[Return Due Date]]),"") ->  | R6: 2017-01-31 | T6: =CalculationTbl[[#This Row],[Tax Amount]]-CalculationTbl[[#This Row],[Tax paid by due date]] -> 0 | V6: =IF(AND(CalculationTbl[[#This Row],[Balance Due]]>0,CalculationTbl[[#This Row],[Tax Due Date]]<>"",CalculationTbl[[#This Row],[Payoff Date]]<>""),(CalculationTbl[[#This Row],[Payoff Date]]-CalculationTbl[[#This Row],[Tax Due Date]])/30,"") ->  | W6: =(CalculationTbl[[#This Row],[CSED]]-CalculationTbl[[#This Row],[Tax Due Date]]) -> 3756
G7: 6 | H7: 941 | I7: 2016 | J7: Q1 | K7: =CalculationTbl[[#This Row],[Type]]&CalculationTbl[[#This Row],[Qtr.]] -> 941Q1 | L7: 2026-08-08 | M7: TRUE | N7: 2016-04-30 | P7: =IF(AND(CalculationTbl[[#This Row],[Return Filed Date]]<>"",CalculationTbl[[#This Row],[Return Due Date]]<>""),MONTH(CalculationTbl[[#This Row],[Return Filed Date]])-MONTH(CalculationTbl[[#This Row],[Return Due Date]]),"") ->  | R7: 2016-04-30 | T7: =CalculationTbl[[#This Row],[Tax Amount]]-CalculationTbl[[#This Row],[Tax paid by due date]] -> 0 | V7: =IF(AND(CalculationTbl[[#This Row],[Balance Due]]>0,CalculationTbl[[#This Row],[Tax Due Date]]<>"",CalculationTbl[[#This Row],[Payoff Date]]<>""),(CalculationTbl[[#This Row],[Payoff Date]]-CalculationTbl[[#This Row],[Tax Due Date]])/30,"") ->  | W7: =(CalculationTbl[[#This Row],[CSED]]-CalculationTbl[[#This Row],[Tax Due Date]]) -> 3752
G8: 7 | H8: 941 | I8: 2016 | J8: Q3 | K8: =CalculationTbl[[#This Row],[Type]]&CalculationTbl[[#This Row],[Qtr.]] -> 941Q3 | L8: 2027-02-06 | M8: FALSE | N8: 2016-10-31 | P8: =IF(AND(CalculationTbl[[#This Row],[Return Filed Date]]<>"",CalculationTbl[[#This Row],[Return Due Date]]<>""),MONTH(CalculationTbl[[#This Row],[Return Filed Date]])-MONTH(CalculationTbl[[#This Row],[Return Due Date]]),"") ->  | R8: 2016-10-31 | T8: =CalculationTbl[[#This Row],[Tax Amount]]-CalculationTbl[[#This Row],[Tax paid by due date]] -> 0 | V8: =IF(AND(CalculationTbl[[#This Row],[Balance Due]]>0,CalculationTbl[[#This Row],[Tax Due Date]]<>"",CalculationTbl[[#This Row],[Payoff Date]]<>""),(CalculationTbl[[#This Row],[Payoff Date]]-CalculationTbl[[#This Row],[Tax Due Date]])/30,"") ->  | W8: =(CalculationTbl[[#This Row],[CSED]]-CalculationTbl[[#This Row],[Tax Due Date]]) -> 3750
G9: 8 | H9: 941 | I9: 2016 | J9: Q4 | K9: =CalculationTbl[[#This Row],[Type]]&CalculationTbl[[#This Row],[Qtr.]] -> 941Q4 | L9: 2027-05-15 | M9: FALSE | N9: 2017-01-31 | P9: =IF(AND(CalculationTbl[[#This Row],[Return Filed Date]]<>"",CalculationTbl[[#This Row],[Return Due Date]]<>""),MONTH(CalculationTbl[[#This Row],[Return Filed Date]])-MONTH(CalculationTbl[[#This Row],[Return Due Date]]),"") ->  | R9: 2017-01-31 | T9: =CalculationTbl[[#This Row],[Tax Amount]]-CalculationTbl[[#This Row],[Tax paid by due date]] -> 0 | V9: =IF(AND(CalculationTbl[[#This Row],[Balance Due]]>0,CalculationTbl[[#This Row],[Tax Due Date]]<>"",CalculationTbl[[#This Row],[Payoff Date]]<>""),(CalculationTbl[[#This Row],[Payoff Date]]-CalculationTbl[[#This Row],[Tax Due Date]])/30,"") ->  | W9: =(CalculationTbl[[#This Row],[CSED]]-CalculationTbl[[#This Row],[Tax Due Date]]) -> 3756
G10: 9 | H10: 1040 | I10: 2017 | K10: =CalculationTbl[[#This Row],[Type]]&CalculationTbl[[#This Row],[Qtr.]] -> 1040 | L10: 2029-03-22 | M10: FALSE | N10: 2018-04-15 | P10: =IF(AND(CalculationTbl[[#This Row],[Return Filed Date]]<>"",CalculationTbl[[#This Row],[Return Due Date]]<>""),MONTH(CalculationTbl[[#This Row],[Return Filed Date]])-MONTH(CalculationTbl[[#This Row],[Return Due Date]]),"") ->  | R10: 2018-04-15 | T10: =CalculationTbl[[#This Row],[Tax Amount]]-CalculationTbl[[#This Row],[Tax paid by due date]] -> 0 | V10: =IF(AND(CalculationTbl[[#This Row],[Balance Due]]>0,CalculationTbl[[#This Row],[Tax Due Date]]<>"",CalculationTbl[[#This Row],[Payoff Date]]<>""),(CalculationTbl[[#This Row],[Payoff Date]]-CalculationTbl[[#This Row],[Tax Due Date]])/30,"") ->  | W10: =(CalculationTbl[[#This Row],[CSED]]-CalculationTbl[[#This Row],[Tax Due Date]]) -> 3994
G11: 10 | H11: 1040 | I11: 2017 | K11: =CalculationTbl[[#This Row],[Type]]&CalculationTbl[[#This Row],[Qtr.]] -> 1040 | L11: 2029-03-22 | M11: TRUE | N11: 2018-04-15 | P11: =IF(AND(CalculationTbl[[#This Row],[Return Filed Date]]<>"",CalculationTbl[[#This Row],[Return Due Date]]<>""),MONTH(CalculationTbl[[#This Row],[Return Filed Date]])-MONTH(CalculationTbl[[#This Row],[Return Due Date]]),"") ->  | R11: 2018-04-15 | T11: =CalculationTbl[[#This Row],[Tax Amount]]-CalculationTbl[[#This Row],[Tax paid by due date]] -> 0 | V11: =IF(AND(CalculationTbl[[#This Row],[Balance Due]]>0,CalculationTbl[[#This Row],[Tax Due Date]]<>"",CalculationTbl[[#This Row],[Payoff Date]]<>""),(CalculationTbl[[#This Row],[Payoff Date]]-CalculationTbl[[#This Row],[Tax Due Date]])/30,"") ->  | W11: =(CalculationTbl[[#This Row],[CSED]]-CalculationTbl[[#This Row],[Tax Due Date]]) -> 3994

Sheet Sheet7
B7: rBox
B8: cType | C8: lo.ListColumns("Type").DataBodyRange.Column | J8: =_xlfn.TEXTJOIN("=",TRUE,B8:C8) -> cType=lo.ListColumns("Type").DataBodyRange.Column
B9: cYear | C9: lo.ListColumns("Year").DataBodyRange.Column | J9: =_xlfn.TEXTJOIN("=",TRUE,B9:C9) -> cYear=lo.ListColumns("Year").DataBodyRange.Column
B10: cQtr | C10: lo.ListColumns("Qtr.").DataBodyRange.Column | J10: cQtr=lo.ListColumns("Qtr.").DataBodyRange.Column
B11: cCSED | C11: lo.ListColumns("CSED").DataBodyRange.Column | J11: cCSED=lo.ListColumns("CSED").DataBodyRange.Column
B12: cExt | C12: lo.ListColumns("Ext.Filed(Y/N)").DataBodyRange.Column | J12: cExt=lo.ListColumns("Ext.Filed(Y/N)").DataBodyRange.Column
B13: cRtnDueDt | C13: lo.ListColumns("Return Due Date").DataBodyRange.Column | J13: cRtnDueDt=lo.ListColumns("Return Due Date").DataBodyRange.Column
B14: cRtnFiledDt | C14: lo.ListColumns("ReturnFiledDate").DataBodyRange.Column | J14: cRtnFiledDt=lo.ListColumns("ReturnFiledDate").DataBodyRange.Column
B15: cTaxAmt | C15: lo.ListColumns("TaxAmount").DataBodyRange.Column | J15: cTaxAmt=lo.ListColumns("TaxAmount").DataBodyRange.Column
B16: cTaxDueDt | C16: lo.ListColumns("TaxDueDate").DataBodyRange.Column | J16: cTaxDueDt=lo.ListColumns("TaxDueDate").DataBodyRange.Column
B17: cTxPdTimely | C17: lo.ListColumns("Taxpaidbyduedate").DataBodyRange.Column | J17: cTxPdTimely=lo.ListColumns("Taxpaidbyduedate").DataBodyRange.Column
B18: cBalDue | C18: lo.ListColumns("BalanceDue").DataBodyRange.Column | J18: cBalDue=lo.ListColumns("BalanceDue").DataBodyRange.Column
V26: =_xlfn.TEXTJOIN("",TRUE,O40:S40) -> 

Sheet PD1
E1: Failure to File | G1: Failure to Pay | I1: Failure to Deposit
E2: Date | F2: Amount | G2: Date | H2: Amount | I2: Date | J2: Amount
E3: =IF(Calculator!$P$2>2,DATE(YEAR(Calculator!$N$2),MONTH(Calculator!$N$2)+1,1),"") -> 2015-05-01 | G3: =IF(Calculator!V2>1,DATE(YEAR(Calculator!$N$2),MONTH(Calculator!$N$2)+1,1),"") -> 2015-05-01
E4: =IF(Calculator!$P$2>1,DATE(YEAR(Calculator!$N$2),MONTH(Calculator!$N$2)+2,1),"") -> 2015-06-01 | G4: =IF(Calculator!V3>2,DATE(YEAR(Calculator!$N$2),MONTH(Calculator!$N$2)+2,1),"") -> 2015-06-01
E5: =IF(Calculator!$P$2>3,DATE(YEAR(Calculator!$N$2),MONTH(Calculator!$N$2)+3,1),"") -> 2015-07-01 | G5: =IF(Calculator!V4>3,DATE(YEAR(Calculator!$N$2),MONTH(Calculator!$N$2)+3,1),"") -> 2015-07-01
E6: =IF(Calculator!$P$2>4,DATE(YEAR(Calculator!$N$2),MONTH(Calculator!$N$2)+4,1),"") -> 2015-08-01 | G6: =IF(Calculator!V5>4,DATE(YEAR(Calculator!$N$2),MONTH(Calculator!$N$2)+4,1),"") -> 2015-08-01
E7: =IF(Calculator!$P$2>5,DATE(YEAR(Calculator!$N$2),MONTH(Calculator!$N$2)+5,1),"") -> 2015-09-01 | G7: =IF(Calculator!V6>5,DATE(YEAR(Calculator!$N$2),MONTH(Calculator!$N$2)+5,1),"") -> 2015-09-01
E8: =IF(Calculator!$P$2>6,DATE(YEAR(Calculator!$N$2),MONTH(Calculator!$N$2)+6,1),"") -> 2015-10-01 | G8: =IF(Calculator!V7>6,DATE(YEAR(Calculator!$N$2),MONTH(Calculator!$N$2)+6,1),"") -> 2015-10-01
G9: =IF(Calculator!V8>7,DATE(YEAR(Calculator!$N$2),MONTH(Calculator!$N$2)+7,1),"") -> 2015-11-01
G10: =IF(Calculator!V9>8,DATE(YEAR(Calculator!$N$2),MONTH(Calculator!$N$2)+8,1),"") -> 2015-12-01
G11: =IF(Calculator!V10>9,DATE(YEAR(Calculator!$N$2),MONTH(Calculator!$N$2)+9,1),"") -> 2016-01-01
G12: =IF(Calculator!V11>10,DATE(YEAR(Calculator!$N$2),MONTH(Calculator!$N$2)+10,1),"") -> 2016-02-01
G13: =IF(Calculator!V12>1,DATE(YEAR(Calculator!$N$2),MONTH(Calculator!$N$2)+1,1),"") -> 
D17: Date | E17: MonthDay | F17: Qtr | G17: Beg Bal | H17: LKUP Int | I17: Interest | J17: Credits | K17: FTF | L17: FTP | M17: Payment | N17: End Bal | O17: CurrentPmt
D18: =Calculator!R2 -> 2015-04-15 | G18: =Calculator!T2 -> 12452 | H18: =IF(AND(MONTH(PD1Table[[#This Row],[Date]])>=1,MONTH(PD1Table[[#This Row],[Date]])<=3),YEAR(PD1Table[[#This Row],[Date]])&" 03",IF(AND(MONTH(PD1Table[[#This Row],[Date]])>=4,MONTH(PD1Table[[#This Row],[Date]])<=6),YEAR(PD1Table[[#This Row],[Date]])&" 06",IF(AND(MONTH(PD1Table[[#This Row],[Date]])>=7,MONTH(PD1Table[[#This Row],[Date]])<=9),YEAR(PD1Table[[#This Row],[Date]])&" 09",IF(AND(MONTH(PD1Table[[#This Row],[Date]])>=10,MONTH(PD1Table[[#This Row],[Date]])<=12),YEAR(PD1Table[[#This Row],[Date]])&" 12","")))) -> 2015 06 | I18: =_xlfn.XLOOKUP(PD1Table[[#This Row],[LKUP Int]],InterestRateTbl[PERIOD],InterestRateTbl[Daily Rate]) -> 8.219178082e-05

Sheet PD2
E1: Failure to File | G1: Failure to Pay | I1: Failure to Deposit
E2: Date | F2: Amount | G2: Date | H2: Amount | I2: Date | J2: Amount
E3: =IF(Calculator!$P$2>2,DATE(YEAR(Calculator!$N$2),MONTH(Calculator!$N$2)+1,1),"") -> 2015-05-01 | G3: =IF(Calculator!V2>1,DATE(YEAR(Calculator!$N$2),MONTH(Calculator!$N$2)+1,1),"") -> 2015-05-01
E4: =IF(Calculator!$P$2>1,DATE(YEAR(Calculator!$N$2),MONTH(Calculator!$N$2)+2,1),"") -> 2015-06-01 | G4: =IF(Calculator!V3>2,DATE(YEAR(Calculator!$N$2),MONTH(Calculator!$N$2)+2,1),"") -> 2015-06-01
E5: =IF(Calculator!$P$2>3,DATE(YEAR(Calculator!$N$2),MONTH(Calculator!$N$2)+3,1),"") -> 2015-07-01 | G5: =IF(Calculator!V4>3,DATE(YEAR(Calculator!$N$2),MONTH(Calculator!$N$2)+3,1),"") -> 2015-07-01
E6: =IF(Calculator!$P$2>4,DATE(YEAR(Calculator!$N$2),MONTH(Calculator!$N$2)+4,1),"") -> 2015-08-01 | G6: =IF(Calculator!V5>4,DATE(YEAR(Calculator!$N$2),MONTH(Calculator!$N$2)+4,1),"") -> 2015-08-01
E7: =IF(Calculator!$P$2>5,DATE(YEAR(Calculator!$N$2),MONTH(Calculator!$N$2)+5,1),"") -> 2015-09-01 | G7: =IF(Calculator!V6>5,DATE(YEAR(Calculator!$N$2),MONTH(Calculator!$N$2)+5,1),"") -> 2015-09-01
E8: =IF(Calculator!$P$2>6,DATE(YEAR(Calculator!$N$2),MONTH(Calculator!$N$2)+6,1),"") -> 2015-10-01 | G8: =IF(Calculator!V7>6,DATE(YEAR(Calculator!$N$2),MONTH(Calculator!$N$2)+6,1),"") -> 2015-10-01
G9: =IF(Calculator!V8>7,DATE(YEAR(Calculator!$N$2),MONTH(Calculator!$N$2)+7,1),"") -> 2015-11-01
G10: =IF(Calculator!V9>8,DATE(YEAR(Calculator!$N$2),MONTH(Calculator!$N$2)+8,1),"") -> 2015-12-01
G11: =IF(Calculator!V10>9,DATE(YEAR(Calculator!$N$2),MONTH(Calculator!$N$2)+9,1),"") -> 2016-01-01
G12: =IF(Calculator!V11>10,DATE(YEAR(Calculator!$N$2),MONTH(Calculator!$N$2)+10,1),"") -> 2016-02-01
G13: =IF(Calculator!V12>1,DATE(YEAR(Calculator!$N$2),MONTH(Calculator!$N$2)+1,1),"") -> 
D17: Date | E17: MonthDay | F17: Qtr | G17: Beg Bal | H17: LKUP Int | I17: Interest | J17: Credits | K17: FTF | L17: FTP | M17: Payment | N17: End Bal | O17: CurrentPmt
D18: =Calculator!R2 -> 2015-04-15 | G18: =Calculator!T2 -> 12452 | H18: =IF(AND(MONTH(PD2Table[[#This Row],[Date]])>=1,MONTH(PD2Table[[#This Row],[Date]])<=3),YEAR(PD2Table[[#This Row],[Date]])&" 03",IF(AND(MONTH(PD2Table[[#This Row],[Date]])>=4,MONTH(PD2Table[[#This Row],[Date]])<=6),YEAR(PD2Table[[#This Row],[Date]])&" 06",IF(AND(MONTH(PD2Table[[#This Row],[Date]])>=7,MONTH(PD2Table[[#This Row],[Date]])<=9),YEAR(PD2Table[[#This Row],[Date]])&" 09",IF(AND(MONTH(PD2Table[[#This Row],[Date]])>=10,MONTH(PD2Table[[#This Row],[Date]])<=12),YEAR(PD2Table[[#This Row],[Date]])&" 12","")))) -> 2015 06 | I18: =_xlfn.XLOOKUP(PD2Table[[#This Row],[LKUP Int]],InterestRateTbl[PERIOD],InterestRateTbl[Daily Rate]) -> 8.219178082e-05
